Cogmind - Beta 14 @@@ ROGUE MODE // 2024.08.10 @ 04:25:11 Player: Jammed Result: Destroyed by Y-45 Defender with Beam Rifle Performance ------------- Evolutions (0) 0 Regions Visited (2) 400 Robots Destroyed (18) 90 Value Destroyed (440) 440 Prototype IDs (0) 0 Alien Tech Used (0) 0 Bonus (0) 0 TOTAL SCORE: 930 Bonus ------- None Cogmind --------- Core Integrity 0/250 Matter 300/300 Energy 123/125 System Corruption 0% Temperature Cool (27) Movement Rolling (130) Ox2 Location -10/Subcaves Parts ------- > --- POWER (1) -------- Light Ion Engine > --- PROPULSION (2) --- Compact Wheel Compact Wheel > --- UTILITY (2) ------ Huge Storage Unit > --- WEAPON (2) ------- Medium Laser Assault Rifle > --- INVENTORY (25) --- Light Ion Engine Subdweller Power Source Light Treads Light Treads Light Treads Light Treads Subdweller Monowheel Heat Sink High-capacity Storage Unit High-capacity Matter Pod (102) Structural Scanner Subdweller Optics Sensor Array Subdweller Beam Cannon Light Assault Rifle Light Assault Rifle Grenade Launcher Mining Laser Peak State ------------ > --- POWER ------------ Light Ion Engine > --- PROPULSION ------- Compact Wheel Compact Wheel > --- UTILITY ---------- Huge Storage Unit Seismic Detector > --- WEAPON ----------- Medium Laser Medium Laser > --- INVENTORY -------- Light Ion Engine Light Treads Light Treads Compact Wheel High-capacity Storage Unit Assault Rifle Light Assault Rifle Light Assault Rifle Grenade Launcher Mining Laser [Rating: 8] Favorites ----------- Power Light Ion Engine Engine Light Ion Engine Propulsion Compact Wheel Leg Aluminum Leg Wheel Compact Wheel Utility Huge Storage Unit Device Seismic Detector Storage Huge Storage Unit Protection Light Armor Plating Weapon Medium Laser Energy Gun Medium Laser Ballistic Gun Assault Rifle Special Weapon Mining Laser Build | -11 -10 -10 ------- Run | Yrd Mat Sub Slots Evolved . | . . . Power . | . . . Propulsion . | . . . Utility . | . . . Weapon . | . . . Parts Attached 20 | 1 17 2 Power . | . . . Engine . | . . . Core . | . . . Reactor . | . . . Propulsion 3 | . 3 . Treads . | . . . Leg . | . . . Wheel 3 | . 3 . Hover . | . . . Flight . | . . . Utility 5 | 1 3 1 Device 2 | 1 1 . Storage 2 | . 2 . Processor . | . . . Hackware . | . . . Protection 1 | . . 1 Artifact . | . . . Weapon 12 | . 11 1 Energy Gun 6 | . 6 . Energy Cannon . | . . . Ballistic Gun 1 | . . 1 Ballistic Cannon . | . . . Launcher . | . . . Special Weapon 5 | . 5 . Impact Weapon . | . . . Slashing Weapon . | . . . Piercing Weapon . | . . . Special Melee Weapon . | . . . Unidentified Prototypes . | . . . Parts Lost 4 | . 2 2 Power . | . . . Propulsion 1 | . 1 . Utility 2 | . 1 1 Weapon 1 | . . 1 Highest Loss Streak 2 | . 2 2 To Critical Strikes . | . . . Average Slot Usage (%) 98 | . 98 89 Engine 14 | . 14 14 Leg 3 | . 3 . Wheel 24 | . 24 28 Device 12 | . 13 2 Storage 14 | . 14 14 Energy Gun 25 | . 25 16 Special Weapon 1 | . 2 . Peak Build Rating 8 | 7 8 8 Average Rating 7 | 6 7 7 On Entrance 7 | 6 7 8 Naked Turns . | . . . Heaviest Build 88 | 12 88 88 Greatest Support 32 | 20 32 32 Greatest Overweight (x) 2 | . 2 2 Average Overweight (x) 1 | . 1 2 Largest Inventory Capacity 25 | 8 25 25 Average Capacity 22 | 8 23 25 Most Carried 18 | 7 15 18 Average Carried 10 | 6 10 15 Final Capacity 25 | 8 25 25 Final Carried 18 | 7 15 18 Class Distribution -------------------- 100% | Mutant Dominant Class ---------------- Mutant | -10/Materials Mutant | -10/Subcaves Resources | -11 -10 -10 ----------- Run | Yrd Mat Sub Matter Collected 503 | 210 204 89 Remotely . | . . . Salvage Created 647 | 101 457 89 Parts 40 | 5 27 8 Haulers Intercepted . | . . . Recyclers Shooed . | . . . Parts Field Recycled . | . . . Retrieved Matter . | . . . Parts Self-Destructed . | . . . Prevented . | . . . Kills | -11 -10 -10 ------- Run | Yrd Mat Sub Combat Hostiles Destroyed 12 | . 10 2 Guns 12 | . 10 2 Classes Destroyed 7 | 2 4 1 Builder 1 | . 1 . Tunneler 1 | 1 . . Recycler 1 | 1 . . Watcher 3 | . 3 . Swarmer 3 | . 3 . Grunt 7 | . 7 . Subdweller 2 | . . 2 Best Kill Streak 3 | 1 3 2 Combat Bots Only 3 | . 3 2 Max Kills in Single Turn 1 | 1 1 1 Gunslinging . | . . . Exploded . | . . . Melee . | . . . Uniques/NPCs Destroyed . | . . . Combat | -11 -10 -10 -------- Run | Yrd Mat Sub Hostile Shots Fired 59 | . 42 17 Missed 12 | . 8 4 Damage Taken 733 | . 412 321 Core 260 | . 140 120 Absorbed by Shields . | . . . Regen/Repaired (Parts) 68 | . 68 . Core Remaining (%) 100 | 100 . . Volleys Fired 58 | 5 46 7 Largest 2 | 2 2 2 Hottest 100 | 90 100 70 Shots Fired 108 | 10 84 14 Gun 100 | 10 76 14 Cannon . | . . . Launcher . | . . . Special 8 | . 8 . Kinetic 7 | . . 7 Thermal 101 | 10 84 7 Explosive . | . . . Electromagnetic . | . . . Robot Hit Streak 18 | 6 18 15 Robot Miss Streak 3 | 3 3 . Penetration Max . | . . . Secondary Targets 1 | . . 1 Max Gunslinging Chain 1 | . . 1 Shots Hit Robots 62 | 6 43 13 Core Hits 31 | 3 23 5 Critical Kills . | . . . Critical Parts Destroyed . | . . . Critical Strikes 5 | . 4 1 Burn 5 | . 4 1 Melee Attacks . | . . . Impact . | . . . Slashing . | . . . Piercing . | . . . Sneak Attacks . | . . . Combat Hostiles . | . . . Follow-up Attacks . | . . . Damage Inflicted 777 | 67 546 164 Guns 777 | 67 546 164 Cannons . | . . . Explosions . | . . . Melee . | . . . Ramming . | . . . Kinetic 78 | . . 78 Thermal 699 | 67 546 86 Explosive . | . . . Electromagnetic . | . . . Impact . | . . . Slashing . | . . . Piercing . | . . . Highest Corruption . | . . . Average Corruption . | . . . Corruption Purged . | . . . Corruption Blocked . | . . . Overload Shots . | . . . Overflow Damage . | . . . Projectiles . | . . . Explosions . | . . . Melee . | . . . Knockbacks . | . . . Impact . | . . . Kinetic . | . . . Secondary . | . . . Self-Inflicted Damage . | . . . Shots . | . . . Rammed . | . . . Targets Rammed . | . . . Kicked . | . . . Crushed . | . . . Highest Temperature 406 | 120 406 . Average Temperature 104 | 53 109 . Received Heat Transfer 297 | . 198 99 Effects 3 | . 3 . Shutdowns 1 | . 1 . Interference 1 | . 1 . Damage (minor) 1 | . 1 . Siege Activations . | . . . Robots Corrupted . | . . . Combat Hostiles . | . . . Parts Fried . | . . . Impact Corruptions . | . . . Robots Melted . | . . . Combat Hostiles . | . . . Parts Melted 7 | . 6 1 Heat Transferred 2407 | 186 1888 333 Parts Sabotaged . | . . . Parts Stolen . | . . . Parts Stripped . | . . . Power Chain Reactions . | . . . Alert | -11 -10 -10 ------- Run | Yrd Mat Sub Peak Influence 179 | 10 179 . Initial 6 | . 6 . Average 70 | 6 74 . Maximum Alert Level . | . . . Low Security (%) 100 | 100 100 . Level 1 . | . . . Level 2 . | . . . Level 3 . | . . . Level 4 . | . . . Level 5 . | . . . High Security . | . . . Max Security . | . . . Squads Dispatched 2 | . 2 . Investigation 1 | . 1 . Extermination . | . . . Reinforcement 1 | . 1 . Assault . | . . . Garrison . | . . . Intercept . | . . . Searches Triggered . | . . . Construction Impeded . | . . . Haulers Reinforced . | . . . Active Scanning Responses . | . . . Cargo Convoy Interrupts . | . . . Stealth | -11 -10 -10 --------- Run | Yrd Mat Sub Distress Signals . | . . . Communications Jammed . | . . . Distress Signals . | . . . Times Spotted 21 | . 18 3 Peak Tracking Total 6 | . 6 2 Tactical Retreats 2 | . 2 . Traps | -11 -10 -10 ------- Run | Yrd Mat Sub Traps Triggered 1 | . 1 . Indirectly . | . . . Trap Hack Attempts . | . . . Triggered . | . . . Disarmed . | . . . Reprogrammed . | . . . Reused . | . . . Traps Extracted . | . . . Installed . | . . . Triggered . | . . . Machines | -11 -10 -10 ---------- Run | Yrd Mat Sub Machines Disabled . | . . . Max in Single Turn . | . . . Machines Repaired . | . . . Machines Dismantled . | . . . Machines Sabotaged . | . . . Overloaded Fab Kills . | . . . Hacking | -11 -10 -10 --------- Run | Yrd Mat Sub Machines Accessed 9 | . 9 . Terminals 7 | . 7 . Fabricators . | . . . Repair Stations 1 | . 1 . Recycling Units 1 | . 1 . Scanalyzers . | . . . Garrison Access . | . . . Total Hacks 27 | . 27 . Successful 17 | . 17 . Failed 10 | . 10 . Catastrophic 1 | . 1 . Database Lockouts . | . . . Manual 15 | . 15 . Terminals 22 | . 22 . Fabricators . | . . . Repair Stations 4 | . 4 . Recycling Units 1 | . 1 . Scanalyzers . | . . . Garrison Access . | . . . Terminal Hacks 6 | . 6 . Robot Analysis 3 | . 3 . Terminal Index 1 | . 1 . Patrol Status 1 | . 1 . Zone Layout 1 | . 1 . Fabricator Hacks . | . . . Repair Station Hacks 3 | . 3 . Scan Component 2 | . 2 . Repair 1 | . 1 . Recycling Unit Hacks 1 | . 1 . Report Inventory 1 | . 1 . Scanalyzer . | . . . Garrison Access Hacks . | . . . Unauthorized Hacks 7 | . 7 . Terminals 7 | . 7 . Track 1 | . 1 . Assimilate 3 | . 3 . Botnet 2 | . 2 . Operators 1 | . 1 . Fabricators . | . . . Repair Stations . | . . . Recycling Units . | . . . Scanalyzers . | . . . Garrison Access . | . . . Data Cores Recovered . | . . . Used . | . . . Hacking Detections 6 | . 6 . Full Trace Events . | . . . Feedback Events . | . . . Feedback Blocked . | . . . Robot Schematics Acquired . | . . . Robots Built . | . . . Authchips . | . . . Time . | . . . Total Robot Build Rating . | . . . Part Schematics Acquired . | . . . Parts Built . | . . . Authchips . | . . . Time . | . . . Total Part Build Rating . | . . . Parts Repaired 1 | . 1 . Time 36 | . 36 . Parts Recycled . | . . . Recycled Matter . | . . . Retrieved Matter . | . . . Retrieved Components . | . . . Parts Scanalyzed . | . . . Part Schematics Acquired . | . . . Parts Damaged . | . . . Bothacking | -11 -10 -10 ------------ Run | Yrd Mat Sub Used RIF Installer . | . . . Robots Hacked . | . . . Non-combat . | . . . Combat . | . . . Robot Hacks Applied . | . . . Relay Couplers Released . | . . . Fabnet Peak Effective % . | . . . Robots Rewired . | . . . Allies Hacked . | . . . Hacks Repelled . | . . . Allies | -11 -10 -10 -------- Run | Yrd Mat Sub Total Allies . | . . . Largest Group . | . . . Highest-Rated Group . | . . . Highest-Rated Ally . | . . . Total Orders . | . . . Ally Attacks . | . . . Total Damage . | . . . Kills . | . . . Allies Corrupted . | . . . Allies Melted . | . . . Intel | -11 -10 -10 ------- Run | Yrd Mat Sub Robot Analysis Total 3 | . 3 . Derelict Logs Recovered . | . . . Drone Launches . | . . . Drone Recoveries . | . . . Exploration | -11 -10 -10 ------------- Run | Yrd Mat Sub Turns Passed 1351 | 64 1218 69 Spaces Moved 675 | 37 607 31 Core . | . . . Treads . | . . . Legs 124 | 37 87 . Wheels 551 | . 520 31 Hover . | . . . Flight . | . . . Fastest Speed 120 | 120 120 130 Average Speed 128 | 120 128 130 Slowest Speed 130 | 120 130 130 Overloaded Moves . | . . . Propulsion Burnouts . | . . . Robots Hopped . | . . . Cave-ins Triggered . | . . . Exploration Rate (%) 34 | 4 95 5 Regions Visited 2 Branch Regions 1 Pre-discovered Areas . | . . . Known Exits Taken . | . . . Unknown Exits Taken 2 | 1 1 . Scrap Searched . | . . . Spaces Dug 7 | . 7 . Terrain Destroyed 8 | . 8 . Melee . | . . . Projectile 8 | . 8 . AOE . | . . . Terrain Rammed . | . . . Walls Destroyed . | . . . Machines Disabled . | . . . Actions | -11 -10 -10 --------- Run | Yrd Mat Sub Total 1032 | 46 940 46 Wait 258 | 3 253 2 Move 673 | 36 606 31 Hop . | . . . Pick Up 18 | 1 13 4 Fast Attach 3 | 1 2 . Attach 4 | . 3 1 Detach . | . . . Swap 13 | . 12 1 Drop 5 | . 5 . Fire 58 | 5 46 7 Melee . | . . . Ram . | . . . Kick . | . . . Crush . | . . . Escape Stasis . | . . . Rewire . | . . . Trap . | . . . Miscellaneous . | . . . Route ------- -11/Scrapyard -10/Materials (discovered 6 exits: [*Mat x3] / [*Min x2] / [*Sub]) -10/Subcaves History --------- Turn | Location | Event 13 | -11/Scrapyard | Discovered new exit (range 3) 65 | -11/Scrapyard | Entered Materials 245 | -10/Materials | Discovered new exit (range 15) 307 | -10/Materials | Build established: Mutant 421 | -10/Materials | Discovered new exit (range 16) 629 | -10/Materials | Discovered new exit (range 13) 810 | -10/Materials | Core integrity fell below 50% 860 | -10/Materials | Discovered new exit (range 9) 1097 | -10/Materials | Repaired Broken Med. Laser 1102 | -10/Materials | Discovered new exit (range 14) 1263 | -10/Materials | Discovered new exit (range 15) 1283 | -10/Materials | Entered Subcaves 1291 | -10/Subcaves | Ambushed by Subdwellers from Twisted Machinery 1305 | -10/Subcaves | Core integrity fell below 20% 1352 | -10/Subcaves | Destroyed by Y-45 Defender with Beam Rifle Last Messages --------------- AMBIENT_HEAT=-10 GOAL=ESCAPE 01291_ 3L-EGS(R) emerges from the Twisted Machinery. 01296_ Med. Laser destroyed. 01300_ 3L-EGS(R) suffers critical hit (Burn). 01306_ 3L-EGS(R) destroyed. 01306_ Switching to secondary target: LY-X0F(R). 01306_ Lgt. Armor Plating destroyed. 01310_ Subatomizers dissect the Disposable Heat Sink. 01318_ Sub. Power Source melted. 01318_ LY-X0F(R) destroyed. 01321_ Subatomizers dissect the Disposable Heat Sink. 01323_ Acquired Sub. Beam Cannon. 01326_ Acquired Sub. Power Source. 01327_ Acquired 59 matter. 01329_ Acquired Sub. Optics. 01333_ Acquired Sub. Monowheel. 01334_ Acquired 30 matter. 01335_ Subatomizers dissect the Disposable Heat Sink. 01352_ Critical hit (Burn: +37). Map ----- +----------------------------------------------------+ | ????????????????????????????????????????????????? | | ????????????????????????????????????????????????? | | ????????????????????????????????????????????????? | | ????????????????????????????????????????????????? | | ????????????????????????????????????????????????? | | ????????????????????????????????????????????????? | | ????????????????????????????????????????????????? | | ????????????????????????????????????????????????? | | ????????????????????????????????????????????????? | | ????????????????????????????????????????????????? | | ??????????????????????? ??????????????????????? | | ??????????????????????# ??????????????????????? | | ??????????????????????# ??????????????????????? | | ???????????????? Y ???# ??????????????????????? | | ???????????????# #### ??????????????????????? | | ??????????????## ##????????????????????? | | ??????????????? #????????????????????? | | ???????????????? #????????????????????? | | ????????????????? ##???????????????????? | | ?????????????????? #???##??????????????? | | ??????????????????? ???? #??????????????? | | ????????????????????# ??? ##?????????????? | | ????????????????????# #??? #?????????????? | | ???????????????????## #?? ??????????????? | | ??????????????????## ##? #??????????????? | | ??????????????????# @ #? #??????????????? | | ??????????????????# ##" ##?????????????? | | ??????????????????# ## ###" #?????????????? | | ???????????????? "???##" ###" #?????????????? | | ?????????????# ??????# " #?????????????? | | ?????????????# ????????# ## " ##?????????????? | | ????????????????????????##### ##??????????????? | | ?????########???????????????## ###??????????????? | | ????######## ########???????# ###??????????????? | | ???#### ################ ##??????????????? | | ??### ########## "" ##?????????????? | | ??## #### "# """" #?????????????? | | ?? ### & """" ##?????????????? | | ??? ## ! &######?????????????? | | ???????### &#####??????????????? | | ????????## ##### &###?????????????????? | | ????????### ######### ## ####?????????????????? | | ????????### ????########## ###??????????????????? | | ?????????###???????##########???????????????????? | | ?????????????????????????####???????????????????? | | ????????????????????????????????????????????????? | | ????????????????????????????????????????????????? | | ????????????????????????????????????????????????? | | ????????????????????????????????????????????????? | | ????????????????????????????????????????????????? | +----------------------------------------------------+ Best States ------------- Heat Dissipation 25 Energy Generation 10 Energy Capacity 125 Matter Stores 300 Matter Capacity 300 Sight Range 16 Terrain Scan Density 10 Armor Coverage 150 Evasion (%) 55 Item Schematics ----------------- None Robot Schematics ------------------ None Fabricated ------------ Nothing Alien Tech Used ----------------- None Achievements -------------- None Challenges ------------ None Game ------ Seed PitchforkXenonSlayer Manual? 0 Play Time 00:10:11 Cumulative 189.0 hours Start 2024.08.10 @ 04:14:29 End 2024.08.10 @ 04:25:11 Sessions 1 Manual Loads 0 Difficulty Rogue Special Mode None Game No. 124 Rogue 124 Adventurer 0 Explorer 0 Win Type - Total 2 Types 1/0/0/1/0/0/0/0/0 Lore% 60 Gallery% 59 Achievement% 58 Wizard Run 0 Options --------- Layout 0 ASCII 0 Keyboard 0 Movement Mouse Keybinds 0 Fullscreen 1 Font 18/SmallcapsGlow Map View 76x50 Zoom Use 0% Tactical HUD 1 Map Filters NONE Filters NONE Steam 1 RUN: c4338936-dd91-4a19-acf5-c2b57b90de67